bitfinex/quotes_ETHUSD_20250602
["timestamp","ask_amount","ask_price","bid_price","bid_amount"]
[1748864782740,0.01,2481.9,2481.8,4.78733354]
[1748864782926,0.01,2481.9,2481.8,12.78733354]
[1748864783652,0.01,2481.9,2481.8,12.02933354]
[1748864784542,0.01,2481.9,2481.8,4.02933354]
[1748864784746,0.01,2481.9,2481.8,4.0696208]
[1748864785040,0.01,2481.9,2481.8,4.83924279]
[1748864785405,0.01,2481.9,2481.8,4.87952592]
[1748864785602,0.01,2481.9,2481.8,4.83924279]
[1748864788347,0.01,2481.9,2481.8,13.64702644]
[1748864788555,0.01,2481.9,2481.8,13.60674279]
[1748864790025,0.01,2481.9,2481.8,14.72774279]
[1748864790924,0.01,2481.9,2481.8,13.60674279]
[1748864791115,0.01,2481.9,2481.8,14.72774279]
[1748864793220,0.01,2481.9,2481.8,13.91783354]
[1748864796854,0.01,2481.9,2481.8,13.91683354]
[1748864797731,0.01,2481.9,2481.8,13.14933354]
[1748864799320,0.01,2481.9,2481.8,13.14733354]
[1748864800063,0.01,2481.9,2481.8,13.91233354]
[1748864800829,0.01,2481.9,2481.8,12.02933354]
[1748864801142,0.01,2481.9,2481.2,4.0303079]
[1748864801352,0.77805129,2481.9,2481.7,4.02939143]
[1748864801523,0.01,2481.9,2481.7,4.02939143]
[1748864801869,0.41621222,2481.9,2481.6,4.02957077]
[1748864802172,0.8227,2481.8,2481.4,4.02993786]
[1748864802369,5.0307,2481.8,2481.2,4.03023613]
[1748864802662,6.88381285,2481.5,2481.3,4.03012732]
[1748864802837,0.8227,2481.4,2481.3,4.03004511]
[1748864803030,5.0337,2481.4,2481.3,4.03004511]
[1748864804783,5.0337,2481.4,2481.2,4.03024302]
[1748864805080,5.0337,2481.4,2480.8,4.0309435]
[1748864805282,6.88381285,2481.2,2481.1,4.03038293]
[1748864806071,6.88381285,2481.2,2480.3,4.208]
[1748864806072,0.8012,2481.1,2480.6,4.03119152]
[1748864806279,6.88381285,2480.8,2480.7,4.03098193]
[1748864806479,6.88381285,2480.8,2480.4,8.0]
[1748864806480,0.8002,2480.7,2480.5,4.03133997]
[1748864806787,0.8002,2480.7,2480.6,4.03128275]
[1748864807485,4.214,2480.9,2480.8,4.03095775]
[1748864807784,4.214,2480.9,2480.6,4.03119288]
[1748864808086,6.88381285,2480.7,2480.3,4.03170567]
[1748864808256,6.88381285,2480.4,2480.3,4.03168095]
[1748864809643,4.9772,2480.5,2480.3,4.03168095]
[1748864809644,4.9772,2480.5,2480.4,4.0316078]
[1748864810670,6.88381285,2480.7,2480.4,4.0316078]
[1748864810881,0.7602,2480.7,2480.6,4.03128275]
[1748864811079,4.9752,2480.7,2480.6,4.03128275]
[1748864812884,11.85901285,2480.7,2480.6,4.03128275]
[1748864813253,0.8127,2480.9,2480.8,4.03095775]
[1748864813453,5.0247,2480.9,2480.8,4.03095775]
[1748864813648,5.0247,2480.9,2480.7,4.03100639]
[1748864813979,5.0247,2480.9,2480.7,4.03110487]
[1748864814390,5.0247,2480.9,2480.8,4.03095775]
[1748864814752,5.0237,2480.9,2480.8,4.03095775]
[1748864816066,4.211,2480.9,2480.8,4.03095775]
[1748864818707,0.8131,2481.1,2481.0,4.0306328]
[1748864819000,0.8131,2481.1,2480.9,4.03070189]
[1748864819001,7.69691285,2481.1,2480.9,4.03070189]
[1748864819198,7.69691285,2481.1,2481.0,4.0306328]
[1748864819354,11.90291285,2481.1,2481.0,4.0306328]
[1748864819694,13.09320414,2481.1,2480.4,1.118]
[1748864819995,6.88381285,2480.7,2480.6,4.03128275]
[1748864820208,11.09081285,2480.7,2480.6,4.03128275]
[1748864820505,11.88761285,2480.7,2479.9,8.0]
[1748864820707,6.88381285,2480.3,2480.2,4.0319329]
[1748864820912,11.89441285,2480.3,2479.8,1.118]
[1748864821085,6.88381285,2479.9,2479.7,4.03274589]
[1748864821397,11.09281285,2479.9,2479.8,4.03258327]
[1748864824825,0.8036,2480.3,2480.1,4.03209548]
[1748864825098,0.55,2480.6,2480.5,4.03144527]
[1748864825099,0.8132,2480.6,2480.5,4.03144527]
[1748864825593,5.0222,2480.6,2480.5,4.03144527]
[1748864825961,1.20714244,2480.8,2480.7,4.03112024]
[1748864826205,5.41614244,2480.8,2480.7,4.03112024]
[1748864827956,1.20714244,2480.8,2480.7,4.03112024]
[1748864828161,5.41414244,2480.8,2480.7,4.03112024]
[1748864828601,0.8132,2480.8,2480.7,4.03112024]
[1748864828910,6.88381285,2480.9,2480.8,4.03095775]
[1748864829110,11.09081285,2480.9,2480.8,4.03095775]
[1748864830059,11.50226777,2480.9,2480.8,4.03095775]
[1748864830502,11.50026777,2480.9,2480.8,4.03095775]
[1748864830659,6.88381285,2480.9,2480.8,4.03095775]
[1748864830853,11.08881285,2480.9,2480.8,4.03095775]
[1748864831160,0.7614,2481.3,2481.2,4.03030791]
[1748864831501,5.37517746,2481.3,2480.9,4.03077518]
[1748864831801,6.88381285,2481.2,2480.9,4.03070499]
[1748864831956,4.208,2481.1,2480.9,4.03070499]
[1748864832156,4.208,2481.1,2481.0,4.0306328]
[1748864832395,11.09181285,2481.1,2481.0,4.0306328]
[1748864832595,11.09181285,2481.1,2480.9,4.03076222]
[1748864833100,11.09181285,2481.1,2480.8,4.03095296]
[1748864833397,11.09181285,2481.1,2480.9,4.03069044]
[1748864833595,11.09181285,2481.1,2481.0,4.0306328]
[1748864833902,6.88381285,2481.1,2481.0,4.0306328]
[1748864834109,11.08981285,2481.1,2481.0,4.0306328]
[1748864834929,11.08981285,2481.1,2480.8,4.03088658]
[1748864835092,11.08981285,2481.1,2481.0,4.0306328]
[1748864836291,12.31561188,2481.1,2480.9,4.03070875]
[1748864836827,12.31561188,2481.1,2480.9,4.03077685]
[1748864837033,12.31561188,2481.1,2481.0,4.0306328]
[1748864837844,11.08781285,2481.1,2481.0,4.0306328]
[1748864838192,6.88381285,2481.1,2481.0,4.0306328]
[1748864838908,11.08681285,2481.1,2481.0,4.0306328]
[1748864841654,7.64521285,2481.3,2481.2,4.03030791]
[1748864841950,6.88381285,2481.3,2481.2,4.03030791]
[1748864842139,11.08281285,2481.3,2481.2,4.03030791]
[1748864842910,11.08181285,2481.3,2481.2,4.03030791]
[1748864843349,6.88381285,2481.3,2481.2,4.03030791]
[1748864843715,11.07981285,2481.3,2481.2,4.03030791]
[1748864844135,6.88381285,2481.3,2481.2,4.03030791]
[1748864844413,6.88381285,2481.6,2481.5,4.02982067]
[1748864844725,11.07981285,2481.6,2481.5,4.02982067]
[1748864845049,0.01,2481.9,2481.8,4.02933354]
[1748864845224,4.208,2481.9,2481.8,4.02933354]
[1748864845421,4.208,2481.9,2481.3,0.8]
[1748864845627,6.88381285,2481.4,2481.3,4.03014548]
[1748864845972,11.08081285,2481.4,2481.3,4.03014548]
[1748864847619,11.08081285,2481.4,2480.8,0.8089]
[1748864847827,6.88381285,2481.1,2481.0,4.0306328]
[1748864848160,11.08181285,2481.1,2480.5,0.7537]
[1748864848324,6.88381285,2480.6,2480.5,4.03144527]
[1748864848523,11.08381285,2480.6,2480.5,4.03144527]
[1748864849848,8.43,2481.7,2480.4,4.0316078]
[1748864849849,0.8132,2481.4,2480.4,4.0316078]
[1748864850051,7.69701285,2481.4,2481.3,4.03014548]
[1748864850256,19.90001285,2481.4,2481.3,4.03014548]
[1748864850612,19.90001285,2481.4,2481.2,4.03022914]
[1748864850814,19.90001285,2481.4,2481.3,4.03014548]
[1748864851215,11.89901285,2481.4,2481.3,4.03014548]
[1748864851429,6.88381285,2481.4,2481.3,4.03014548]
[1748864851625,11.08481285,2481.4,2481.3,4.03014548]
[1748864852016,6.88381285,2481.4,2481.3,4.03014548]
[1748864852216,11.08481285,2481.4,2481.3,4.03014548]
[1748864855665,11.08481285,2480.6,2480.5,4.03144527]
[1748864858866,6.88381285,2480.6,2480.5,4.03144527]
[1748864859165,11.07981285,2480.6,2480.5,4.83775058]
[1748864859532,6.88381285,2480.6,2480.5,4.83775058]
[1748864859768,11.07881285,2480.6,2480.5,4.83775058]
[1748864859978,6.88381285,2480.6,2480.5,4.83775058]
[1748864860268,11.07881285,2480.6,2480.5,4.83775058]
[1748864860439,7.67161285,2481.2,2481.1,4.03047035]
[1748864860638,19.86561285,2481.2,2481.1,4.03047035]
[1748864861532,19.86561285,2481.2,2481.0,4.0304947]
[1748864861837,4.196,2481.1,2480.9,4.03070966]
[1748864862042,4.196,2481.1,2480.9,4.03070229]
[1748864862832,4.196,2481.1,2481.0,4.0306328]
[1748864863072,15.67161285,2481.2,2481.0,4.0306328]
[1748864863369,4.195,2481.1,2481.0,4.0306328]
[1748864864690,6.88381285,2481.2,2481.1,4.03047035]
[1748864864867,11.07881285,2481.2,2481.1,4.03047035]
[1748864865634,6.88381285,2481.2,2481.1,4.03047035]
[1748864865838,11.07781285,2481.2,2481.1,4.03047035]
[1748864867474,4.194,2481.2,2481.1,4.03047035]
[1748864867774,6.88381285,2481.3,2481.2,4.03030791]
[1748864868079,11.07681285,2481.3,2481.2,4.03030791]
[1748864870415,11.07381285,2481.3,2481.2,4.03030791]
[1748864870778,6.88381285,2481.3,2481.2,4.03030791]
[1748864870986,11.07481285,2481.3,2481.2,4.03030791]
[1748864871515,6.88381285,2481.3,2481.2,4.03030791]
[1748864871812,0.8257,2481.8,2481.2,1.57457783]
[1748864871979,4.192,2481.7,2481.4,4.02998307]
[1748864872320,4.192,2481.7,2481.3,0.04029549]
[1748864872321,7.3009766,2481.9,2481.8,4.02933354]
[1748864872497,6.89381285,2481.9,2481.8,4.02933354]
[1748864872703,4.202,2481.9,2481.8,4.02933354]
[1748864873010,0.01,2481.9,2481.8,4.02933354]
[1748864873214,4.202,2481.9,2481.8,4.02933354]
[1748864873569,4.201,2481.9,2481.8,4.02933354]
[1748864877811,0.01,2481.9,2481.8,5.62910328]
[1748864878010,0.01,2481.9,2481.8,5.58881267]
[1748864882167,4.193,2481.9,2481.8,4.02933354]
[1748864884325,0.01,2481.9,2481.8,4.02933354]
[1748864884485,4.197,2481.9,2481.8,4.02933354]
[1748864885789,4.198,2481.9,2481.8,4.02933354]
[1748864887001,0.01,2481.9,2481.8,4.02933354]
[1748864887233,0.01,2481.9,2481.8,4.8352129]
[1748864887868,0.01,2481.9,2481.8,4.02933354]
[1748864891726,4.199,2481.9,2481.8,4.02933354]
[1748864892393,0.01,2481.9,2481.8,4.02933354]
[1748864892587,0.01,2481.9,2481.8,4.83952406]
[1748864892988,0.01,2481.9,2481.8,4.79923354]
[1748864893223,0.01,2481.9,2481.8,5.68210291]
[1748864894436,0.01,2481.9,2481.8,5.72238699]
[1748864894611,0.01,2481.9,2481.8,13.72238699]
[1748864894811,0.01,2481.9,2481.8,13.68210291]
[1748864896992,0.01,2481.9,2481.8,14.23210291]
[1748864899004,0.01,2482.9,2482.8,4.02771064]
[1748864899218,0.01,2482.9,2482.8,13.2426817]
[1748864906840,0.01,2482.9,2482.8,4.02771064]
[1748864907343,0.01,2482.9,2482.8,4.06797949]
[1748864907500,0.01,2482.9,2482.8,4.02771064]
[1748864908005,0.01,2482.9,2482.8,12.77951064]
[1748864909037,0.01,2482.9,2482.8,20.21332349]
[1748864909238,0.01,2482.9,2482.8,21.0638249]
[1748864911910,0.01,2483.9,2483.8,4.02608905]
[1748864912111,0.01,2483.9,2483.8,12.80728905]
[1748864912550,6.89381285,2483.9,2483.8,4.02608905]
[1748864914015,0.01,2483.9,2483.8,4.02608905]
[1748864915856,0.01,2483.9,2483.8,4.06634559]
[1748864916058,0.01,2483.9,2483.8,4.83132034]
[1748864916222,0.01,2483.9,2483.8,5.65042034]
[1748864916422,0.01,2483.9,2483.8,13.65042034]
[1748864919145,0.01,2483.9,2483.8,14.76042034]
[1748864920135,0.01,2483.9,2483.8,13.65042034]
[1748864920334,0.7679,2483.9,2483.8,12.02608905]
[1748864920777,0.7679,2483.9,2483.8,4.02608905]
[1748864925081,4.9569,2483.9,2483.8,4.02608905]
[1748864925265,4.9559,2483.9,2483.8,4.02608905]
[1748864925586,0.01,2483.9,2483.8,4.06634743]
[1748864925739,0.01,2483.9,2483.8,4.87560456]
[1748864926139,0.01,2483.9,2483.8,4.83534618]
[1748864926448,0.01,2483.9,2483.8,12.83534618]
[1748864928482,0.01,2483.9,2483.8,4.83534618]
[1748864930489,0.01,2483.9,2483.8,4.87559879]
[1748864930649,0.01,2483.9,2483.8,4.83534618]
[1748864931175,0.01,2483.9,2483.8,12.83534618]
[1748864932157,0.01,2483.9,2483.8,4.83534618]
[1748864932384,0.01,2483.9,2483.8,4.02608905]
[1748864933288,0.8259,2483.9,2483.8,4.02608905]
[1748864934491,5.0169,2483.9,2483.7,4.02610549]
[1748864934649,0.7857,2483.8,2483.5,4.02644873]
[1748864934850,0.7658,2483.6,2483.5,4.02644873]
[1748864935192,4.9558,2483.6,2483.5,4.02644873]
[1748864936073,4.9558,2483.6,2483.3,4.02681382]
[1748864936251,4.19,2483.6,2483.5,4.02657539]
[1748864936453,11.07381285,2483.6,2483.4,4.02669987]
[1748864936749,11.07381285,2483.6,2482.6,8.0]
[1748864936750,6.88381285,2483.6,2483.5,4.02657539]
[1748864936977,11.87671285,2483.6,2483.5,4.02657539]
[1748864941210,7.68471285,2483.6,2483.5,4.02657539]
[1748864941508,7.69561285,2483.9,2483.8,4.02608905]
[1748864941709,11.88361285,2483.9,2483.8,4.02608905]
[1748864942304,7.69561285,2483.9,2483.8,4.02608905]
[1748864942491,11.88361285,2483.9,2483.8,4.02608905]
[1748864943701,0.8118,2483.9,2483.8,4.02608905]
[1748864943911,0.8118,2483.9,2483.8,4.83131959]
[1748864943912,4.196,2483.9,2483.8,4.83131959]
[1748864944068,4.999,2483.9,2483.8,4.02608905]
[1748864944270,5.002,2483.9,2483.8,4.02608905]
[1748864944790,5.002,2483.9,2483.7,4.02616584]
[1748864944962,5.002,2483.9,2483.8,4.02608905]
[1748864945163,5.002,2483.9,2483.7,4.02618099]
[1748864945378,1.18858129,2483.8,2483.7,4.02618099]
[1748864946371,5.002,2483.9,2483.8,4.02608905]
[1748864946576,5.002,2483.9,2483.1,1.115]
[1748864946782,6.88381285,2483.7,2483.2,0.04026654]
[1748864946977,4.187,2483.6,2483.2,0.04026654]
[1748864947501,4.187,2483.6,2483.1,1.115]
[1748864947711,6.88381285,2483.4,2482.5,0.8309]
[1748864948030,5.29408129,2483.6,2482.3,0.64200571]
[1748864948031,6.88381285,2482.7,2482.3,0.8309]
[1748864948314,6.88381285,2482.7,2482.4,0.04027716]
[1748864948532,4.201,2482.8,2482.3,0.8309]
[1748864948691,4.201,2482.8,2482.4,0.04027772]
[1748864948871,4.201,2482.8,2482.3,0.8309]
[1748864949076,4.201,2482.8,2482.3,0.87117691]
[1748864949328,0.40900396,2483.0,2482.3,0.87117691]
[1748864949472,4.199,2482.9,2482.3,0.87117691]
[1748864949930,7.67491285,2483.2,2482.4,0.04027667]
[1748864950093,4.199,2483.0,2482.4,0.88711767]
[1748864950289,7.67491285,2483.2,2482.5,0.04027441]
[1748864950502,4.2,2483.1,2482.3,0.8309]
[1748864951327,4.2,2483.1,2482.4,1.115]
[1748864951615,6.88381285,2482.9,2482.3,0.8309]
[1748864951771,6.88381285,2482.9,2482.4,0.04027758]
[1748864951975,1.1972523,2483.2,2482.3,0.8309]
[1748864952176,11.08181285,2483.1,2482.3,0.8309]
[1748864953210,4.198,2483.1,2482.4,0.04027352]
[1748864953419,7.69321285,2483.4,2482.3,0.8309]
[1748864953620,7.69321285,2483.4,2482.5,0.8248]
[1748864953774,11.89121285,2483.4,2482.6,0.50228]
[1748864953976,11.89121285,2483.4,2482.7,0.8248]
[1748864954217,12.28531996,2483.4,2482.7,0.8248]
[1748864954520,12.28431996,2483.4,2482.7,0.8248]
[1748864954946,8.08731996,2483.4,2482.7,0.8248]
[1748864955106,12.28531996,2483.4,2482.7,0.8248]
[1748864955739,11.89121285,2483.4,2482.7,0.8248]
[1748864956545,0.762,2483.7,2482.8,1.95896791]
[1748864956743,4.196,2483.6,2482.9,8.93651475]
[1748864956907,4.196,2483.6,2483.0,0.04026643]
[1748864957243,6.88381285,2483.4,2482.8,1.9187]
[1748864957626,6.88381285,2483.4,2482.9,0.04026697]
[1748864958141,4.2,2483.5,2482.9,0.04026697]
[1748864959742,6.88381285,2483.1,2482.8,0.8007]
[1748864960945,1.15893887,2483.7,2482.8,0.8007]
[1748864960946,6.88381285,2483.4,2482.8,0.8007]
[1748864961244,11.09181285,2483.3,2482.8,0.8007]
[1748864962151,11.89221285,2483.3,2482.8,0.8007]
[1748864962349,1.19733887,2483.7,2482.8,0.8007]
[1748864962567,6.88381285,2483.5,2482.8,0.8007]
[1748864963564,6.88381285,2483.5,2482.9,0.04026955]
[1748864963739,6.88381285,2483.5,2482.8,0.8007]
[1748864963939,6.88381285,2483.5,2482.9,0.04026956]
[1748864964335,6.88381285,2483.5,2482.8,0.8007]
[1748864964533,6.88381285,2483.5,2482.9,0.04026958]
[1748864964757,6.88381285,2483.5,2482.8,0.8007]
[1748864965353,8.14901141,2483.5,2482.8,0.8007]
[1748864965566,7.63941285,2483.2,2482.5,0.8263]
[1748864965767,6.88381285,2482.9,2482.5,0.8263]
[1748864967462,7.65161285,2483.5,2482.6,0.04027627]
[1748864967659,4.213,2483.3,2482.7,0.8214]
[1748864967848,6.88381285,2483.2,2482.7,0.8214]
[1748864970240,6.88381285,2482.9,2482.5,0.8014]
[1748864971183,6.88381285,2482.9,2482.1,0.75]
[1748864972339,6.88381285,2482.9,2482.2,0.04027951]
[1748864972837,4.21,2483.0,2482.3,0.7641]
[1748864973056,4.21,2483.0,2482.2,8.0]
[1748864973057,4.209,2483.1,2482.5,0.7641]
[1748864973977,6.88381285,2483.2,2482.5,0.7641]
[1748864974179,11.90981285,2483.5,2482.7,0.8196]
[1748864974477,1.46926467,2483.4,2482.7,0.8196]
[1748864975165,6.88381285,2483.2,2482.7,0.8196]
[1748864975371,6.88381285,2482.9,2482.5,0.7968]
[1748864978924,15.65291285,2483.3,2482.6,0.04027754]
[1748864979078,15.65291285,2483.3,2482.5,0.7968]
[1748864979079,4.205,2483.2,2482.5,0.7968]
[1748864979876,4.205,2483.2,2482.7,0.7697]
[1748864980904,6.88381285,2483.3,2482.7,0.7697]
[1748864981104,11.08781285,2483.3,2482.7,0.7697]
[1748864984289,6.88381285,2483.3,2482.7,0.7697]
[1748864984601,11.08281285,2483.3,2482.7,0.7697]
[1748864984802,0.759,2483.5,2482.7,0.7697]
[1748864985013,7.24564674,2483.6,2482.9,0.8332]
[1748864985014,4.199,2483.4,2482.9,0.8332]
[1748864986497,6.88381285,2483.3,2482.9,0.8332]
[1748864988342,6.88381285,2483.3,2482.5,1.119]
[1748864988546,6.88381285,2483.3,2482.6,0.7887]
[1748864988743,11.07781285,2483.3,2482.6,0.7887]
[1748864989243,6.88381285,2483.3,2482.6,0.7887]
[1748864989542,11.07581285,2483.3,2482.6,0.7887]
[1748864989950,4.192,2483.3,2482.6,0.7887]
[1748864990248,4.192,2483.3,2482.6,0.82897195]
[1748864991030,6.88381285,2483.5,2482.6,0.82897195]
[1748864991205,4.19,2483.4,2482.6,0.82897195]
[1748864991748,0.7701,2483.6,2482.6,0.82897195]
[1748864991960,4.189,2483.3,2482.6,0.82897195]
[1748864992353,4.189,2483.3,2482.6,0.7887]
[1748864992853,4.189,2483.3,2482.5,1.15927103]
[1748864992854,4.188,2483.4,2482.8,0.8297]
[1748864993054,4.188,2483.4,2482.9,0.04026877]
[1748864993829,4.188,2483.4,2482.8,0.8297]
[1748864994209,6.88381285,2483.3,2482.8,0.8297]
[1748864995319,3.56929099,2482.9,2482.6,0.8189]
[1748864996306,4.187,2483.0,2482.6,0.8189]
[1748864997838,3.56929099,2482.9,2482.6,0.8189]
[1748865000346,3.56929099,2483.1,2482.6,0.8189]
[1748865000541,7.75129099,2483.1,2482.7,0.04027427]
[1748865000740,3.56929099,2483.1,2482.7,0.04027427]
[1748865000976,7.75129099,2483.1,2482.7,0.04027427]
[1748865001186,7.75129099,2483.1,2482.6,0.8189]
[1748865001187,3.56929099,2483.1,2482.6,0.8189]
[1748865001383,7.75029099,2483.1,2482.6,0.85917425]
[1748865001787,7.75029099,2483.1,2482.6,0.8189]
[1748865002375,3.56929099,2482.9,2482.6,0.8189]
[1748865002987,3.56929099,2482.7,2482.3,0.827]
[1748865003292,3.56929099,2482.5,2481.9,0.767]
[1748865003578,4.183,2482.6,2481.9,8.767]
[1748865003781,4.186,2482.6,2482.0,0.80728455]
[1748865003965,4.186,2482.6,2482.1,0.88072846]
[1748865004166,4.186,2482.6,2482.3,0.833]
[1748865004479,3.56929099,2482.5,2482.3,0.833]
[1748865005180,4.186,2482.6,2482.3,0.833]
[1748865006444,0.8275,2482.9,2482.3,0.833]
[1748865006644,4.184,2482.6,2482.3,0.833]
[1748865007278,4.183,2482.6,2482.3,0.833]
[1748865009046,4.183,2482.6,2482.0,0.7957]
[1748865009377,6.85650419,2482.4,2482.0,0.7957]
[1748865009538,7.26887906,2482.4,2482.0,0.7957]
[1748865010584,8.48931697,2482.4,2481.8,0.7946]
[1748865012376,8.48931697,2482.4,2481.2,8.85978032]
[1748865012581,8.48931697,2482.4,2481.3,0.7891]
[1748865013475,7.26887906,2482.4,2481.4,0.0402918]
[1748865013788,7.26887906,2482.4,2481.5,0.8168]
[1748865014780,7.26887906,2482.4,2481.6,0.04028988]
[1748865015188,7.26887906,2482.4,2481.5,0.8168]
[1748865017315,0.8131,2482.3,2481.5,0.8168]
[1748865017519,7.26887906,2482.4,2481.2,0.85978032]
[1748865017520,7.60740419,2482.1,2481.2,0.85978032]
[1748865017814,0.7509,2482.1,2481.3,0.84539381]
[1748865018004,4.185,2482.0,2481.3,0.84539381]
[1748865019422,4.9339,2482.1,2481.3,0.84539381]
[1748865019712,0.80819791,2482.2,2481.3,0.84539381]
[1748865019713,4.183,2482.2,2481.4,0.8309]
[1748865019889,4.9685,2482.3,2481.5,0.92740819]
[1748865020094,4.9685,2482.3,2481.5,0.88711938]
[1748865020483,7.3865,2482.3,2481.5,0.88711938]
[1748865020680,0.7966,2482.0,2481.4,0.8309]
[1748865022317,6.85650419,2481.8,2481.2,1.63678032]
[1748865023592,11.04250419,2481.8,2481.2,1.63678032]
[1748865024391,11.04150419,2481.8,2481.2,1.63678032]
[1748865024589,4.185,2481.8,2481.2,1.63678032]
[1748865024891,4.9816,2482.0,2481.3,0.04029616]
[1748865025203,4.184,2482.0,2481.4,0.8289]
[1748865025391,4.184,2482.0,2481.5,1.106]
[1748865025820,3.57212809,2482.1,2481.6,0.04029085]
[1748865026022,6.42198465,2482.3,2481.6,0.7728]
[1748865026398,2.84985656,2482.3,2481.6,0.81308729]
[1748865026600,2.84985656,2482.3,2481.7,0.99190873]
[1748865026925,6.42198465,2482.3,2481.7,0.99190873]
[1748865027094,6.42198465,2482.3,2481.6,0.7728]
[1748865028301,2.84985656,2482.3,2481.6,0.7728]
[1748865028623,3.57212809,2481.9,2481.6,0.7728]
[1748865031526,3.57212809,2482.1,2481.6,0.81309388]
[1748865032516,2.84985656,2482.3,2481.6,0.81309388]
[1748865032822,2.84985656,2482.3,2481.8,0.7878]
[1748865033857,2.84985656,2482.3,2481.9,0.04028414]
[1748865034012,2.84985656,2482.3,2482.0,0.7551]
[1748865034692,2.84985656,2482.3,2482.1,0.04028328]
[1748865034945,2.84985656,2482.3,2482.2,1.8895]
[1748865035230,0.7655,2483.0,2482.2,1.8895]
[1748865035231,6.85555093,2482.8,2482.2,1.8895]
[1748865035431,8.03565602,2482.8,2482.2,1.8895]
[1748865036340,6.85555093,2482.8,2482.2,1.8895]
[1748865036622,0.7655,2483.0,2482.2,1.8895]
[1748865036834,4.178,2482.9,2482.2,1.8895]
[1748865037033,7.62105093,2483.0,2482.2,1.8895]
[1748865037329,11.79805093,2483.0,2482.2,1.8895]
[1748865037524,0.8101,2483.2,2482.4,0.8043]
[1748865040734,6.85555093,2483.0,2482.4,13.5043]
[1748865044812,4.169,2483.1,2482.5,0.7043]
[1748865045011,4.169,2483.1,2482.6,0.99190939]
[1748865046010,4.168,2483.1,2482.6,0.99190939]
[1748865046225,4.167,2483.1,2482.6,0.99190939]
[1748865047106,4.166,2483.1,2482.6,0.99190939]
[1748865047329,6.85555093,2483.3,2482.6,0.99190939]
[1748865047532,4.166,2483.2,2482.7,0.44688536]
[1748865048103,6.85555093,2483.3,2482.8,0.7993]
[1748865048299,4.165,2483.2,2482.8,0.7993]
[1748865051935,6.85555093,2483.5,2482.8,0.7993]
[1748865052239,4.161,2483.4,2482.8,0.7993]
[1748865053104,4.161,2483.4,2482.8,13.5993]
[1748865053314,4.161,2483.4,2482.9,0.99190939]
[1748865054007,6.85555093,2483.5,2482.9,0.99190939]
[1748865054229,0.8157,2483.6,2482.9,0.99190939]
[1748865054230,6.85555093,2483.1,2482.9,0.99190939]
[1748865054553,6.85555093,2483.1,2482.8,13.5993]
[1748865054554,7.63405093,2483.1,2482.8,12.8]
[1748865057349,3.57038783,2482.9,2482.8,12.8]
[1748865057672,6.576,2483.2,2483.1,8.45111217]
[1748865057816,10.80398783,2483.2,2483.1,8.45111217]
[1748865059557,10.80498783,2483.2,2483.1,8.45111217]
[1748865060621,11.56968783,2483.2,2483.1,8.45111217]
[1748865061228,3.1827,2483.2,2483.1,8.45111217]
[1748865061439,10.91008783,2483.2,2483.1,8.45111217]
[1748865061628,10.91008783,2483.2,2482.2,8.0]
[1748865061629,15.03047566,2483.2,2482.3,0.8258]
[1748865061834,3.57038783,2482.4,2481.9,0.8258]
[1748865062035,3.2071,2482.7,2481.4,0.8258]
[1748865062036,3.57038783,2482.0,2481.4,0.8258]
[1748865062233,3.57038783,2481.6,2481.4,0.8258]
[1748865063354,7.73838783,2481.6,2481.3,1.1]
[1748865063654,3.57038783,2481.4,2481.3,1.1]
[1748865064258,3.57038783,2481.4,2481.1,0.01]
[1748865064420,7.73838783,2481.6,2481.1,0.05030098]
[1748865064622,7.73838783,2481.6,2481.1,0.01]
[1748865065250,4.168,2481.6,2481.1,0.01]
[1748865066654,6.86134383,2481.5,2481.1,0.01]
[1748865068734,4.168,2481.6,2481.1,0.01]
[1748865068977,4.171,2481.5,2481.1,0.01]
[1748865069362,6.86134383,2481.4,2481.1,0.01]
[1748865070367,0.8097,2481.3,2481.1,0.01]
[1748865070662,4.171,2481.5,2481.1,0.01]
[1748865070865,4.172,2481.4,2481.2,0.7647]
[1748865072559,4.172,2481.4,2481.1,0.01]
[1748865072759,6.86134383,2481.3,2481.1,0.01]
[1748865073349,7.62304383,2481.3,2481.1,0.01]
[1748865075366,1.16415465,2481.7,2481.1,0.01]
[1748865075553,4.174,2481.6,2481.2,0.7894]
[1748865076482,11.03534383,2481.6,2481.2,0.7894]
[1748865076658,1.14304985,2481.5,2481.2,0.7894]
[1748865077255,11.03534383,2481.6,2481.2,0.7894]
[1748865078589,11.03534383,2481.6,2481.1,0.01]
[1748865080891,6.86134383,2481.6,2481.1,0.01]
[1748865083468,4.89464985,2481.6,2481.1,0.01]
[1748865083661,2.418,2481.5,2481.1,0.01]
[1748865083981,4.89464985,2481.6,2481.1,0.01]
[1748865084553,6.86134383,2481.4,2481.1,0.01]
[1748865085190,3.57433506,2481.3,2481.1,0.01]
[1748865086892,4.35233506,2481.2,2481.1,0.01]
[1748865087095,3.57433506,2480.5,2480.1,0.8317]
[1748865087268,3.57433506,2480.2,2480.1,0.8317]
[1748865087956,3.57433506,2480.2,2480.1,0.01]
[1748865088155,4.39183506,2480.2,2480.1,0.01]
[1748865088361,9.42421857,2480.2,2480.1,0.01]
[1748865088586,9.81803741,2480.2,2480.1,0.01]
[1748865089259,13.11565976,2480.2,2480.1,0.01]
[1748865089461,21.11565976,2480.2,2480.1,0.01]
[1748865089776,21.66565976,2480.2,2480.1,0.01]
[1748865089978,21.66565976,2480.2,2479.1,0.01]
[1748865090167,6.87195741,2479.5,2479.1,0.8222]
[1748865090378,4.179,2479.4,2479.1,0.8222]
[1748865090992,2.16656598,2480.1,2479.1,0.8222]
[1748865091190,6.87195741,2479.9,2479.1,0.8222]
[1748865092167,6.87195741,2479.6,2479.1,0.8222]
[1748865094796,0.7724,2479.7,2479.1,0.8222]
[1748865094975,6.87195741,2479.5,2479.1,0.8222]
[1748865095172,4.177,2479.4,2479.1,0.01]
[1748865095407,6.87195741,2479.2,2479.1,0.01]
[1748865095609,7.68975741,2479.2,2479.1,0.01]
[1748865097716,6.87195741,2479.2,2479.1,0.01]
[1748865097893,11.04995741,2479.2,2479.1,0.01]